fUSD/lending_fUSD_20260420
["ID","MTS","AMOUNT","RATE_DAILY","PERIOD"]
[420867617,1776676338411,-10000.01,8.497e-05,2]
[420867618,1776676338524,-10000.01,8.497e-05,2]
[420867619,1776676340266,-10000.01,8.497e-05,2]
[420867620,1776676342396,163.0,7.89e-05,3]
[420867621,1776676361138,-260.00131455,8.178e-05,2]
[420867622,1776676367007,-249.74388172,8.178e-05,2]
[420867623,1776676368109,-812.34604173,8.178e-05,2]
[420867624,1776676368154,-8375.31791654,8.497e-05,2]
[420867625,1776676369126,-10000.01,8.497e-05,2]
[420867626,1776676369140,-10000.01,8.497e-05,2]
[420867627,1776676369178,-10000.01,8.497e-05,2]
[420867628,1776676369192,-10000.01,8.497e-05,2]
[420867629,1776676369459,-10000.01,8.497e-05,2]
[420867630,1776676369766,-10000.01,8.497e-05,2]
[420867631,1776676369884,-10000.01,8.497e-05,2]
[420867632,1776676370038,-10000.01,8.497e-05,2]
[420867633,1776676374242,-10000.01,8.497e-05,2]
[420867634,1776676388362,1226.858903,7.945e-05,2]
[420867635,1776676448058,573.0,7.945e-05,3]
[420867636,1776676469588,-195.1704,8.496e-05,2]
[420867637,1776676469618,-300.0,8.496e-05,2]
[420867638,1776676469646,-260.0,8.496e-05,2]
[420867639,1776676470025,-500.0,8.496e-05,2]
[420867640,1776676470034,-7989.6692,8.497e-05,2]
[420867641,1776676470092,-10000.01,8.497e-05,2]
[420867642,1776676470125,-10000.01,8.497e-05,2]
[420867643,1776676470139,-10000.01,8.497e-05,2]
[420867644,1776676470153,-10000.01,8.497e-05,2]
[420867645,1776676470170,-10000.01,8.497e-05,2]
[420867646,1776676470184,-10000.01,8.497e-05,2]
[420867647,1776676470319,237.86,8.37e-05,2]
[420867648,1776676482827,-10000.01,8.497e-05,2]
[420867649,1776676495836,-10000.01,8.497e-05,2]
[420867650,1776676500640,-10000.01,8.497e-05,2]
[420867651,1776676500766,-10000.01,8.497e-05,2]
[420867652,1776676500900,-10000.01,8.497e-05,2]
[420867653,1776676501079,-10000.01,8.497e-05,2]
[420867654,1776676501229,-300.0,8.496e-05,2]
[420867655,1776676501266,-300.0,8.496e-05,2]
[420867656,1776676501304,-1200.0,8.496e-05,2]
[420867657,1776676501388,-6400.01,8.497e-05,2]
[420867658,1776676501416,-10000.01,8.497e-05,2]
[420867659,1776676501503,-10000.01,8.497e-05,2]
[420867660,1776676511393,189.33,8.327e-05,2]
[420867661,1776676511723,252.45,8.391e-05,2]
[420867662,1776676513831,172.14,6.24e-05,2]
[420867663,1776676520570,-500.0,8.496e-05,2]
[420867664,1776676520604,-474.38564438,8.496e-05,2]
[420867665,1776676520637,-281.23183921,8.496e-05,2]
[420867666,1776676520666,-500.0,8.496e-05,2]
[420867667,1776676520695,-479.309193,8.496e-05,2]
[420867668,1776676520725,-614.22982393,8.496e-05,2]
[420867669,1776676520754,-500.0,8.496e-05,2]
[420867670,1776676520783,-500.0,8.496e-05,2]
[420867671,1776676520812,-500.0,8.496e-05,2]
[420867672,1776676520842,-500.0,8.496e-05,2]
[420867673,1776676521090,-301.69699896,8.496e-05,2]
[420867674,1776676535967,-198.30300104,8.496e-05,2]
[420867675,1776676535996,-500.0,8.496e-05,2]
[420867676,1776676536023,-500.0,8.496e-05,2]
[420867677,1776676536053,-500.0,8.496e-05,2]
[420867678,1776676536084,-500.0,8.496e-05,2]
[420867679,1776676536115,-500.0,8.496e-05,2]
[420867680,1776676536148,-658.34009666,8.496e-05,2]
[420867681,1776676536181,-658.34009666,8.496e-05,2]
[420867682,1776676536209,-500.0,8.496e-05,2]
[420867683,1776676536241,-311.70351462,8.496e-05,2]
[420867684,1776676536340,-346.63658204,8.496e-05,2]
[420867685,1776676536372,-658.34009666,8.496e-05,2]
[420867686,1776676536404,-658.34009666,8.496e-05,2]
[420867687,1776676536436,-658.34009666,8.496e-05,2]
[420867688,1776676536469,-658.34009666,8.496e-05,2]
[420867689,1776676536500,-658.34009666,8.496e-05,2]
[420867690,1776676536533,-658.34009666,8.496e-05,2]
[420867691,1776676536566,-658.34009666,8.496e-05,2]
[420867692,1776676536810,-300.0,8.495e-05,2]
[420867693,1776676536820,-46.63658204,8.496e-05,2]
[420867694,1776676536838,-89.97548268,8.496e-05,2]
[420867695,1776676538031,-521.72803194,8.496e-05,2]
[420867696,1776676538066,-658.34009666,8.496e-05,2]
[420867697,1776676538100,-658.34009666,8.496e-05,2]
[420867698,1776676538134,-658.34009666,8.496e-05,2]
[420867699,1776676538170,-658.34009666,8.496e-05,2]
[420867700,1776676538204,-658.34009666,8.496e-05,2]
[420867701,1776676538238,-658.34009666,8.496e-05,2]
[420867702,1776676538273,-398.13267954,8.496e-05,2]
[420867703,1776676538402,-260.20741712,8.496e-05,2]
[420867704,1776676541229,-658.34009666,8.496e-05,2]
[420867705,1776676541262,-658.34009666,8.496e-05,2]
[420867706,1776676541299,-658.34009666,8.496e-05,2]
[420867707,1776676541332,-658.34009666,8.496e-05,2]
[420867708,1776676541366,-658.34009666,8.496e-05,2]
[420867709,1776676541399,-658.34009666,8.496e-05,2]
[420867710,1776676541432,-658.34009666,8.496e-05,2]
[420867711,1776676541464,-124.9085501,8.496e-05,2]
[420867712,1776676541603,-533.43154656,8.496e-05,2]
[420867713,1776676546516,-658.34009666,8.496e-05,2]
[420867714,1776676546550,-658.34009666,8.496e-05,2]
[420867715,1776676546582,-658.34009666,8.496e-05,2]
[420867716,1776676546611,-500.0,8.496e-05,2]
[420867717,1776676546639,-500.0,8.496e-05,2]
[420867718,1776676546667,-339.11212143,8.496e-05,2]
[420867719,1776676546694,-292.637621,8.496e-05,2]
[420867720,1776676546722,-285.87185101,8.496e-05,2]
[420867721,1776676546751,-160.2669701,8.496e-05,2]
[420867722,1776676546779,-500.0,8.496e-05,2]
[420867723,1776676546807,-394.19229296,8.496e-05,2]
[420867724,1776676547186,-105.80770704,8.496e-05,2]
[420867725,1776676553505,-500.0,8.496e-05,2]
[420867726,1776676553535,-500.0,8.496e-05,2]
[420867727,1776676553565,-317.20422173,8.496e-05,2]
[420867728,1776676553595,-500.0,8.496e-05,2]
[420867729,1776676553624,-190.73454401,8.496e-05,2]
[420867730,1776676553659,-2046.48797624,8.496e-05,2]
[420867731,1776676553775,-1891.15651604,8.496e-05,2]
[420867732,1776676556404,-155.3314602,8.496e-05,2]
[420867733,1776676556437,-2046.48797624,8.496e-05,2]
[420867734,1776676556470,-2046.48797624,8.496e-05,2]
[420867735,1776676559524,-1503.39517464,8.496e-05,2]
[420867736,1776676567792,4386.09,7.945e-05,2]
[420867737,1776676567814,5000.01,7.945e-05,2]
[420867738,1776676567837,5000.01,7.945e-05,2]
[420867739,1776676567860,5000.01,7.945e-05,2]
[420867740,1776676567882,5000.01,7.945e-05,2]
[420867741,1776676567904,5000.01,7.945e-05,2]
[420867742,1776676567926,2001.095477,7.945e-05,2]
[420867743,1776676568014,679.45,0.000165,30]
[420867744,1776676586107,2057.238744,8.178e-05,2]
[420867745,1776676629789,1147.0,5e-05,6]
[420867746,1776676642054,246.1673,8.078e-05,2]
[420867747,1776676670831,163.0,8.078e-05,3]
[420867748,1776676681232,-300.0,8.496e-05,2]
[420867749,1776676681257,-150.0,8.496e-05,2]
[420867750,1776676681281,-629.62595184,8.496e-05,2]
[420867751,1776676681306,-300.0,8.496e-05,2]
[420867752,1776676681331,-260.0,8.496e-05,2]
[420867753,1776676681356,-5000.0,8.496e-05,2]
[420867754,1776676681383,-139828.37404816,8.496e-05,2]
[420867755,1776676701867,168.3,8.327e-05,2]
[420867756,1776676753212,868.0,8.327e-05,3]
[420867757,1776676759961,150.0,8.327e-05,3]
[420867758,1776676811133,155.0,8.327e-05,3]
[420867759,1776676814530,824.0,8.327e-05,3]
[420867760,1776676846484,150.0,8.327e-05,3]
[420867761,1776676918212,-152.0,8.471e-05,7]
[420867762,1776676918235,-118.8361175,8.494e-05,2]
[420867763,1776676925289,797.0,8.327e-05,3]
[420867764,1776676943979,151.0,8.327e-05,3]
[420867765,1776676971660,370.313324,8.178e-05,2]
[420867766,1776676971983,163.0,8.327e-05,3]
[420867767,1776676985416,757.0,8.327e-05,3]
[420867768,1776676992121,151.0,8.327e-05,3]
[420867769,1776677037954,2610.696676,8.395e-05,2]
[420867770,1776677037977,5000.01,8.395e-05,2]
[420867771,1776677037999,3800.307924,8.395e-05,2]
[420867772,1776677041146,300.0,8.394e-05,2]
[420867773,1776677045233,720.0,8.327e-05,3]
[420867774,1776677051871,151.0,8.327e-05,3]
[420867775,1776677108118,28.702076,8.327e-05,3]
[420867776,1776677108142,655.297924,8.327e-05,3]
[420867777,1776677108176,155.0,8.327e-05,3]
[420867778,1776677116834,151.0,8.327e-05,3]
[420867779,1776677123391,150.13037662,7.644e-05,2]
[420867780,1776677123423,150.0,7.644e-05,2]
[420867781,1776677124813,150.0,7.644e-05,2]
[420867782,1776677126649,150.0,7.644e-05,2]
[420867783,1776677126736,150.0,7.856e-05,2]
[420867784,1776677129749,150.0,8.068e-05,2]
[420867785,1776677129784,150.0,8.281e-05,2]
[420867786,1776677131438,150.0,7.644e-05,2]
[420867787,1776677131530,150.0,8.068e-05,2]
[420867788,1776677131723,150.37161379,7.644e-05,2]
[420867789,1776677131795,150.0,7.644e-05,2]
[420867790,1776677132019,150.0,7.644e-05,2]
[420867791,1776677133388,150.0,8.068e-05,2]
[420867792,1776677136022,257.26616216,7.644e-05,2]
[420867793,1776677139127,150.0,7.644e-05,2]
[420867794,1776677139197,150.0,7.927e-05,2]
[420867795,1776677139268,150.0,8.21e-05,2]
[420867796,1776677139418,150.48265423,7.644e-05,2]
[420867797,1776677143769,150.0,7.644e-05,2]
[420867798,1776677143867,150.0,7.644e-05,2]
[420867799,1776677149323,152.0,8.417e-05,7]
[420867800,1776677185696,152.0,8.327e-05,3]
[420867801,1776677226321,626.4612692,8.327e-05,3]
[420867802,1776677226343,22.5387308,8.327e-05,3]
[420867803,1776677233071,152.0,8.327e-05,3]
[420867804,1776677304684,163.0,8.327e-05,3]
[420867805,1776677336281,-260.0,8.473e-05,2]
[420867806,1776677336305,-26.50030941,8.493e-05,2]
[420867807,1776677348237,4662.4712692,8.396e-05,2]
[420867808,1776677348264,5000.01,8.396e-05,2]
[420867809,1776677348291,5000.01,8.396e-05,2]
[420867810,1776677348317,5000.01,8.396e-05,2]
[420867811,1776677348342,5000.01,8.396e-05,2]
[420867812,1776677348368,5000.01,8.396e-05,2]
[420867813,1776677348394,5000.01,8.396e-05,2]
[420867814,1776677348420,5000.01,8.396e-05,2]
[420867815,1776677348446,5000.01,8.396e-05,2]
[420867816,1776677348473,5000.01,8.396e-05,2]
[420867817,1776677356989,-243.41394637,8.396e-05,2]
[420867818,1776677360901,-252.09902227,8.396e-05,2]
[420867819,1776677363023,-250.0,8.396e-05,2]
[420867820,1776677401154,300.0,8.395e-05,2]
[420867821,1776677401277,1200.0,8.395e-05,2]
[420867822,1776677401940,300.0,8.395e-05,2]
[420867823,1776677402419,150.0,8.395e-05,2]
[420867828,1776677435393,-3840.2991,8.396e-05,2]
[420867829,1776677435404,-716.51117773,8.396e-05,2]
[420867830,1776677435416,-933.29910589,8.396e-05,2]
[420867831,1776677435427,-129876.11557854,8.396e-05,2]
[420867832,1776677435436,-338.3785733,8.396e-05,2]
[420867833,1776677435446,-259.0,8.396e-05,2]
[420867834,1776677435456,-617.0,8.396e-05,3]
[420867835,1776677435465,-155.0,8.396e-05,3]
[420867836,1776677435475,-152.0,8.396e-05,3]
[420867837,1776677435485,-155.08553619,8.493e-05,2]
[420867838,1776677435495,-150.00000001,8.493e-05,2]
[420867839,1776677435504,-153.35569929,8.493e-05,2]
[420867840,1776677435514,-150.0,8.493e-05,2]
[420867841,1776677435523,-260.6588089,8.493e-05,2]
[420867842,1776677435532,-150.0,8.493e-05,2]
[420867843,1776677435542,-1000.0,8.494e-05,2]
[420867844,1776677435552,-1442.2327337,8.495e-05,2]
[420867845,1776677435561,-1442.2327337,8.495e-05,2]
[420867846,1776677435571,-1442.2327337,8.495e-05,2]
[420867847,1776677435581,-1442.2327337,8.495e-05,2]
[420867848,1776677435590,-1442.2327337,8.495e-05,2]
[420867849,1776677435601,-1442.2327337,8.495e-05,2]
[420867850,1776677435610,-1442.2327337,8.495e-05,2]
[420867851,1776677435619,-1442.2327337,8.495e-05,2]
[420867852,1776677435629,-1442.2327337,8.495e-05,2]
[420867853,1776677435639,-1442.2327337,8.495e-05,2]
[420867854,1776677435648,-1442.2327337,8.495e-05,2]
[420867855,1776677435659,-1442.2327337,8.495e-05,2]
[420867856,1776677435668,-1442.2327337,8.495e-05,2]
[420867857,1776677435677,-1442.2327337,8.495e-05,2]
[420867858,1776677435687,-1442.2327337,8.495e-05,2]
[420867859,1776677435697,-1442.2327337,8.495e-05,2]
[420867860,1776677435706,-1442.2327337,8.495e-05,2]
[420867861,1776677435716,-1442.2327337,8.495e-05,2]
[420867862,1776677435725,-1442.2327337,8.495e-05,2]
[420867863,1776677435735,-1442.2327337,8.495e-05,2]
[420867864,1776677435744,-1442.2327337,8.495e-05,2]
[420867865,1776677435754,-1442.2327337,8.495e-05,2]
[420867866,1776677435764,-1442.2327337,8.495e-05,2]
[420867867,1776677435773,-1442.2327337,8.495e-05,2]
[420867868,1776677435782,-1442.2327337,8.495e-05,2]
[420867869,1776677435791,-1442.2327337,8.495e-05,2]
[420867870,1776677435801,-1442.2327337,8.495e-05,2]
[420867871,1776677435810,-1442.2327337,8.495e-05,2]
[420867872,1776677435819,-1442.2327337,8.495e-05,2]
[420867873,1776677435828,-1442.2327337,8.495e-05,2]
[420867874,1776677435838,-1442.2327337,8.495e-05,2]
[420867875,1776677435847,-1442.2327337,8.495e-05,2]
[420867876,1776677435856,-1442.2327337,8.495e-05,2]
[420867877,1776677435865,-1442.2327337,8.495e-05,2]
[420867878,1776677435874,-1442.2327337,8.495e-05,2]
[420867879,1776677435883,-1442.2327337,8.495e-05,2]
[420867880,1776677435893,-1442.2327337,8.495e-05,2]
[420867881,1776677435902,-1442.2327337,8.495e-05,2]
[420867882,1776677435912,-1442.2327337,8.495e-05,2]
[420867883,1776677435922,-1442.2327337,8.495e-05,2]
[420867884,1776677435931,-1442.2327337,8.495e-05,2]
[420867885,1776677435941,-1442.2327337,8.495e-05,2]
[420867886,1776677435950,-1442.2327337,8.495e-05,2]
[420867887,1776677435959,-1442.2327337,8.495e-05,2]
[420867888,1776677435969,-1442.2327337,8.495e-05,2]
[420867889,1776677435978,-1442.2327337,8.495e-05,2]
[420867890,1776677435988,-1442.2327337,8.495e-05,2]
[420867891,1776677435998,-1442.2327337,8.495e-05,2]
[420867892,1776677436008,-1442.2327337,8.495e-05,2]
[420867893,1776677436018,-1442.2327337,8.495e-05,2]
[420867894,1776677436028,-1442.2327337,8.495e-05,2]
[420867895,1776677436037,-1442.2327337,8.495e-05,2]
[420867896,1776677436047,-1442.2327337,8.495e-05,2]
[420867897,1776677436056,-1442.2327337,8.495e-05,2]
[420867898,1776677436066,-1442.2327337,8.495e-05,2]
[420867899,1776677436075,-1442.2327337,8.495e-05,2]
[420867900,1776677436085,-1442.2327337,8.495e-05,2]
[420867901,1776677436094,-1442.2327337,8.495e-05,2]
[420867902,1776677436103,-1471.74548148,8.495e-05,2]
[420867903,1776677436113,-1471.74548148,8.495e-05,2]
[420867904,1776677436122,-1471.74548148,8.495e-05,2]
[420867905,1776677436131,-1471.74548148,8.495e-05,2]
[420867906,1776677436141,-1471.74548148,8.495e-05,2]
[420867907,1776677436150,-1471.74548148,8.495e-05,2]
[420867908,1776677436160,-1471.74548148,8.495e-05,2]
[420867909,1776677436169,-1471.74548148,8.495e-05,2]
[420867910,1776677436178,-1471.74548148,8.495e-05,2]
[420867911,1776677436188,-1471.74548148,8.495e-05,2]
[420867912,1776677436197,-1471.74548148,8.495e-05,2]
[420867913,1776677436206,-1471.74548148,8.495e-05,2]
[420867914,1776677436215,-1471.74548148,8.495e-05,2]
[420867915,1776677436224,-1471.74548148,8.495e-05,2]
[420867916,1776677436233,-1471.74548148,8.495e-05,2]
[420867917,1776677436243,-1471.74548148,8.495e-05,2]
[420867918,1776677436252,-1471.74548148,8.495e-05,2]
[420867919,1776677436261,-1471.74548148,8.495e-05,2]
[420867920,1776677436270,-1471.74548148,8.495e-05,2]
[420867921,1776677436280,-1471.74548148,8.495e-05,2]
[420867922,1776677436290,-1471.74548148,8.495e-05,2]
[420867923,1776677436299,-1471.74548148,8.495e-05,2]
[420867924,1776677436308,-1471.74548148,8.495e-05,2]
[420867925,1776677436317,-1471.74548148,8.495e-05,2]
[420867926,1776677436326,-1471.74548148,8.495e-05,2]
[420867927,1776677436336,-1471.74548148,8.495e-05,2]
[420867928,1776677436346,-1471.74548148,8.495e-05,2]
[420867929,1776677436356,-1471.74548148,8.495e-05,2]
[420867930,1776677436366,-2203.99673313,8.495e-05,2]
[420867931,1776677436379,-2203.99673313,8.495e-05,2]
[420867932,1776677436388,-500.0,8.495e-05,2]
[420867933,1776677436398,-557.61346486,8.495e-05,2]
[420867934,1776677436407,-587.34800932,8.495e-05,2]
[420867935,1776677436417,-237.1223885,8.495e-05,2]
[420867936,1776677436426,-590.63,8.495e-05,2]
[420867937,1776677436435,-500.0,8.496e-05,2]
[420867938,1776677436445,-500.0,8.496e-05,2]
[420867939,1776677436454,-500.0,8.496e-05,2]
[420867940,1776677436463,-379.96087675,8.496e-05,2]
[420867941,1776677436473,-500.0,8.496e-05,2]
[420867942,1776677436482,-500.0,8.496e-05,2]
[420867943,1776677436493,-332.06995107,8.496e-05,2]
[420867944,1776677436503,-150.0,8.496e-05,2]
[420867945,1776677436512,-500.0,8.496e-05,2]
[420867946,1776677436521,-565.48173432,8.496e-05,2]
[420867947,1776677436531,-500.0,8.496e-05,2]
[420867948,1776677436540,-500.0,8.496e-05,2]
[420867949,1776677436549,-500.0,8.496e-05,2]
[420867950,1776677436559,-288.98478846,8.496e-05,2]
[420867951,1776677436568,-17225.93764797,8.496e-05,2]
[420867952,1776677436581,-7477.70987563,8.496e-05,2]
[420867953,1776677436593,-43527.06827885,8.496e-05,2]
[420867954,1776677436605,-59077.15265469,8.496e-05,2]
[420867955,1776677436614,-1093.91752428,8.496e-05,3]
[420867956,1776677436624,-500.0,8.57e-05,2]
[420867957,1776677436633,-33078.91,8.598e-05,2]
[420867958,1776677436642,-590.63,8.769e-05,2]
[420867959,1776677436651,-448.77409028,8.785e-05,2]
[420867960,1776677436666,-1051.22590972,8.785e-05,2]
[420867961,1776677436676,-501.09490428,8.844e-05,2]
[420867962,1776677436685,-299.99,8.9e-05,2]
[420867963,1776677436695,-666.47425504,8.9e-05,2]
[420867964,1776677436785,-0.3636935,8.9e-05,2]
[420867965,1776677436803,-9333.15205146,8.9e-05,2]
[420867966,1776677436812,-1277.36,8.9e-05,2]
[420867967,1776677436821,-150.99,8.9e-05,2]
[420867968,1776677436830,-590.63,9.043e-05,2]
[420867969,1776677436839,-617.0,9.112e-05,3]
[420867970,1776677436849,-163.8,9.126e-05,2]
[420867971,1776677436858,-320.05835961,9.226e-05,2]
[420867972,1776677436867,-1680.0,9.234e-05,2]
[420867973,1776677436876,-255.0,9.234e-05,2]
[420867974,1776677436886,-193.0,9.235e-05,2]
[420867975,1776677436895,-358.15302227,9.235e-05,2]
[420867976,1776677436904,-250.0,9.235e-05,2]
[420867977,1776677436913,-2000.0,9.29e-05,2]
[420867978,1776677436923,-590.63,9.317e-05,2]
[420867979,1776677436932,-509.74388172,9.32e-05,2]
[420867980,1776677436941,-286.50030941,9.342e-05,2]
[420867981,1776677436951,-578.20924308,9.407e-05,2]
[420867982,1776677436960,-1328.27659266,9.407e-05,2]
[420867983,1776677436970,-670.58624095,9.407e-05,2]
[420867984,1776677436979,-200.0,9.407e-05,2]
[420867985,1776677436988,-500.0,9.407e-05,2]
[420867986,1776677436998,-743.50770149,9.407e-05,2]
[420867987,1776677437008,-174.61919141,9.407e-05,2]
[420867988,1776677437018,-219.23011724,9.407e-05,2]
[420867989,1776677437028,-227.34163157,9.407e-05,2]
[420867990,1776677437037,-235.75327194,9.407e-05,2]
[420867991,1776677437047,-244.476143,9.407e-05,2]
[420867992,1776677437056,-253.52176029,9.407e-05,2]
[420867993,1776677437065,-345.02061161,9.407e-05,2]
[420867994,1776677437075,-151.0,9.407e-05,2]
[420867995,1776677437085,-500.0,9.462e-05,2]
[420867996,1776677437096,-151.0,9.462e-05,2]
[420867997,1776677437105,-500.0,9.517e-05,2]
[420867998,1776677437114,-151.0,9.517e-05,2]
[420867999,1776677437124,-500.0,9.572e-05,2]
[420868000,1776677437133,-151.0,9.572e-05,2]
[420868001,1776677437143,-590.66,9.591e-05,2]
[420868002,1776677437152,-500.0,9.627e-05,2]
[420868003,1776677437161,-617.0,9.828e-05,3]
[420868004,1776677437171,-245.66450408,9.955e-05,2]
[420868005,1776677437181,-200.0,0.0001,2]
[420868006,1776677437191,-1443.84197139,0.0001006,2]
[420868084,1776677439271,-500.0,0.0001006,2]
[420868086,1776677439287,-4483.80197647,0.0001006,2]
[420868089,1776677439303,-7830.34605214,0.0001006,2]
[420868091,1776677439313,-2351.0,0.00010158,2]
[420868093,1776677439322,-433.0,0.00010158,2]
[420868095,1776677439331,-59606.1525716,0.00010322,2]
[420868098,1776677439341,-1048.0,0.0001039,2]
[420868100,1776677439351,-4449.72435081,0.0001039,2]
[420868102,1776677439362,-1580.27564919,0.0001039,2]
[420868104,1776677439371,-160.0,0.00010429,2]
[420868106,1776677439380,-2000.0,0.00010451,2]
[420868108,1776677439390,-617.0,0.00010544,3]
[420868110,1776677439399,-163.8,0.00010648,2]
[420868112,1776677439409,-13299.9303691,0.00010729,2]
[420868114,1776677439418,-1265.0,0.0001075,2]
[420868116,1776677439427,-927.0,0.0001075,2]
[420868118,1776677439437,-1219.0,0.0001075,2]
[420868120,1776677439446,-155.0,0.00010867,5]
[420868122,1776677439455,-3240.0,0.00010959,2]
[420868124,1776677439465,-150.0,0.00010959,2]
[420868126,1776677439474,-1938.86674574,0.00011099,2]
[420868128,1776677439484,-1938.8667457,0.00011099,2]
[420868130,1776677439493,-1938.8667457,0.00011099,2]
[420868132,1776677439502,-1938.8667457,0.00011099,2]
[420868134,1776677439511,-1938.8667457,0.00011099,2]
[420868136,1776677439522,-1938.8667457,0.00011099,2]
[420868138,1776677439531,-1938.8667457,0.00011099,2]
[420868140,1776677439541,-1938.8667457,0.00011122,2]
[420868142,1776677439551,-1956.0,0.00011174,2]
[420868144,1776677439561,-155.0,0.00011174,2]
[420868146,1776677439570,-617.0,0.0001126,3]
[420868149,1776677439580,-158.16,0.00011411,2]
[420868151,1776677439589,-470.52,0.00011436,2]
[420868153,1776677439600,-150.0,0.00011438,2]
[420868155,1776677439609,-150.0,0.00011439,2]
[420868156,1776677439618,-2836.72208022,0.00011451,2]
[420868159,1776677439630,-619.43491978,0.00011451,2]
[420868161,1776677439639,-204.053,0.00011451,2]
[420868163,1776677439648,-1002.65074182,0.00011456,2]
[420868165,1776677439659,-2294.16425489,0.00011456,2]
[420868169,1776677439686,-788.45865194,0.00011456,2]
[420868206,1776677440450,-811.25815889,0.00011456,2]
[420868207,1776677440508,-325.47403664,0.00011456,2]
[420868208,1776677440652,-387.65499754,0.00011456,2]
[420868209,1776677440665,-2472.02706809,0.00011456,2]
[420868210,1776677440674,-470.52,0.00011465,2]
[420868211,1776677440683,-470.56494647,0.00011493,2]
[420868212,1776677440693,-1938.8667457,0.00011511,2]
[420868213,1776677440702,-511.063787,0.00011511,2]
[420868214,1776677440711,-511.063787,0.00011511,2]
[420868215,1776677440721,-511.063787,0.00011511,2]
[420868216,1776677440730,-511.063787,0.00011511,2]
[420868217,1776677440739,-2000.0,0.00011612,2]
[420868218,1776677440748,-1150.58,0.00011626,2]
[420868219,1776677440758,-31311.02479148,0.0001164,2]
[420868220,1776677440767,-544.333382,0.0001164,2]
[420868221,1776677440776,-544.333382,0.0001164,2]
[420868222,1776677440785,-544.333382,0.0001164,2]
[420868223,1776677440795,-544.333382,0.0001164,2]
[420868224,1776677440804,-151.0,0.0001164,2]
[420868225,1776677440814,-2000.0,0.000117,2]
[420868226,1776677440823,-150.15826368,0.00011722,2]
[420868227,1776677440832,-500.0,0.00011722,2]
[420868228,1776677440842,-500.0,0.00011722,2]
[420868229,1776677440851,-500.0,0.00011722,2]
[420868230,1776677440862,-500.0,0.00011722,2]
[420868231,1776677440872,-621.2937788,0.00011722,2]
[420868232,1776677440881,-500.0,0.00011722,2]
[420868233,1776677440890,-500.0,0.00011722,2]
[420868234,1776677440899,-500.0,0.00011722,2]
[420868235,1776677440908,-190.22466408,0.00011722,2]
[420868236,1776677440918,-150.0,0.00011722,2]
[420868237,1776677440927,-150.0,0.00011722,2]
[420868238,1776677440937,-150.0,0.00011722,2]
[420868239,1776677440946,-150.0,0.00011722,2]
[420868240,1776677440955,-150.0,0.00011722,2]
[420868242,1776677440964,-186.81862901,0.00011722,2]
[420868244,1776677440973,-150.0,0.00011722,2]
[420868246,1776677440982,-150.0,0.00011722,2]
[420868248,1776677440992,-150.0,0.00011722,2]
[420868249,1776677441001,-150.0,0.00011722,2]
[420868250,1776677441010,-207.1455019,0.00011722,2]
[420868251,1776677441019,-150.0,0.00011722,2]
[420868252,1776677441028,-150.0,0.00011722,2]
[420868253,1776677441037,-150.0,0.00011722,2]
[420868254,1776677441047,-150.0,0.00011722,2]
[420868255,1776677441056,-215.84431283,0.00011722,2]
[420868256,1776677441065,-296.59793196,0.0001176,2]
[420868257,1776677441074,-155.0,0.00011797,3]
[420868258,1776677441083,-3938.0,0.000119,2]
[420868259,1776677441092,-1938.8667457,0.000119,2]
[420868260,1776677441101,-250.0,0.00011912,2]
[420868261,1776677441111,-18806.0,0.00011973,2]
[420868262,1776677441120,-502.95671559,0.00011973,2]
[420868263,1776677441129,-500.0,0.00011973,2]
[420868264,1776677441138,-571.62591778,0.00011973,2]
[420868265,1776677441147,-359.4843714,0.00011973,2]
[420868266,1776677441156,-504.06938275,0.00011973,2]
[420868267,1776677441165,-500.0,0.00011973,2]
[420868268,1776677441174,-500.0,0.00011973,2]
[420868269,1776677441183,-500.0,0.00011973,2]
[420868270,1776677441192,-617.0,0.00011976,3]
[420868271,1776677441201,-232.7422422,0.00011993,2]
[420868272,1776677441210,-1093.91752428,0.00011999,3]
[420868273,1776677441219,-50000.0,0.00012,2]
[420868274,1776677441227,-218.0,0.00012,5]
[420868275,1776677441236,-250.0,0.00012,2]
[420868276,1776677441246,-141140.55924022,0.00012,2]
[420868277,1776677441266,-9814.84719088,0.00012,2]
[420868305,1776677448360,-1438.871553,0.0001039,2]
[420868306,1776677475349,4343.002,8.395e-05,2]
[420868307,1776677522581,10000.01,8.395e-05,2]
[420868308,1776677522611,10000.01,8.395e-05,2]
[420868309,1776677522640,10000.01,8.395e-05,2]